Cogmind - Beta 15 @@@ ROGUE MODE // 2025.05.09 @ 11:23:08 Player: Falconhoof Result: Destroyed by G-47 Trooper with Particle Gun Performance ------------- Evolutions (2) 1000 Regions Visited (6) 1200 Robots Destroyed (84) 420 Value Destroyed (1981) 1981 Prototype IDs (30) 600 Alien Tech Used (0) 0 Bonus (300) 300 TOTAL SCORE: 5501 Bonus ------- Aligned with FarCom 300 Cogmind --------- Core Integrity 0/550 Matter 300/300 Energy 99/100 System Corruption 19% Temperature Cool (9) Movement Hovering (50) Location -8/Materials Parts ------- > --- POWER (1) -------- (None) > --- PROPULSION (3) --- Aerolev Unit > --- UTILITY (5) ------ Small Storage Unit 0b10 Alert Chip Salvage Targeting Computer > --- WEAPON (2) ------- Hammer > --- INVENTORY (8) ---- Light Nuclear Core Wheel Improved Trap Extractor (0/6) Peak State ------------ > --- POWER ------------ Improved Deuterium Engine > --- PROPULSION ------- Aerolev Unit Aerolev Unit Aerolev Unit > --- UTILITY ---------- Heat Sink Small Storage Unit 0b10 Alert Chip Salvage Targeting Computer Improved Propulsion Shielding > --- WEAPON ----------- Improved EM Shotgun Advanced EMP Blaster > --- INVENTORY -------- Improved Deuterium Engine Wheel Wheel Wheel Wheel Improved Trap Extractor Improved EM Pulse Cannon Ion Cannon [Rating: 37] Favorites ----------- Power Improved Deuterium Engine Engine Improved Deuterium Engine Propulsion Wheel Treads Light Treads Wheel Wheel Hover Unit Aerolev Unit Utility Small Storage Unit Device Heat Sink Storage Small Storage Unit Processor Salvage Targeting Computer Protection Propulsion Shielding Weapon Improved EM Shotgun Energy Gun Improved EM Shotgun Energy Cannon Ion Cannon Ballistic Gun Shotgun Ballistic Cannon Light Cannon Launcher Advanced EMP Blaster Impact Weapon Hammer Build | -11 -10 -9 -9 -9 -8 -8 ------- Run | Yrd Mat Mat Min Exi Min Mat Slots Evolved 4 | . . 2 . . . 2 Power . | . . . . . . . Propulsion 1 | . . . . . . 1 Utility 3 | . . 2 . . . 1 Weapon . | . . . . . . . Parts Attached 54 | 6 5 20 4 1 1 17 Power 7 | 1 1 3 1 . . 1 Engine 7 | 1 1 3 1 . . 1 Core . | . . . . . . . Reactor . | . . . . . . . Propulsion 17 | 2 . 5 . . 1 9 Treads 1 | . . 1 . . . . Leg . | . . . . . . . Wheel 11 | 2 . 4 . . 1 4 Hover 5 | . . . . . . 5 Flight . | . . . . . . . Utility 13 | 1 1 7 1 1 . 2 Device 5 | . . 3 1 . . 1 Storage 2 | 1 . 1 . . . . Processor 4 | . 1 2 . 1 . . Hackware . | . . . . . . . Protection 2 | . . 1 . . . 1 Artifact . | . . . . . . . Weapon 17 | 2 3 5 2 . . 5 Energy Gun 6 | 1 1 2 1 . . 1 Energy Cannon 2 | . . . 1 . . 1 Ballistic Gun 3 | 1 . 2 . . . . Ballistic Cannon 3 | . 2 1 . . . . Launcher 2 | . . . . . . 2 Special Weapon . | . . . . . . . Impact Weapon 1 | . . . . . . 1 Slashing Weapon . | . . . . . . . Piercing Weapon . | . . . . . . . Special Melee Weapon . | . . . . . . . Unidentified Prototypes 4 | . . . . 1 . 3 Corrupted Parts 2 | . . . . . . 2 System Corruption 17 | . . . . . . 17 Parts Lost 22 | . 1 4 . . . 17 Power 3 | . . 1 . . . 2 Propulsion 10 | . 1 2 . . . 7 Utility 3 | . . 1 . . . 2 Weapon 6 | . . . . . . 6 Highest Loss Streak 7 | . 1 2 . . . 7 To Critical Strikes . | . . . . . . . Average Backups 6 | 1 4 7 8 7 7 6 Power . | . . . 1 1 1 . Propulsion 1 | . . 1 2 2 2 1 Utility 1 | . 1 1 1 1 1 1 Weapon 3 | . 2 3 4 3 3 2 Tool/Special . | . . . . . . . Unused Backups 10 | . 3 3 1 . 1 2 Power 1 | . . . . . . 1 Propulsion 2 | . . . 1 . 1 . Utility 1 | . . 1 . . . . Weapon 6 | . 3 2 . . . 1 Tool/Special . | . . . . . . . Average Slot Usage (%) 92 | . 82 92 99 100 100 90 Engine 10 | . 14 10 11 11 11 8 Wheel 19 | . 16 14 22 22 22 21 Device 7 | . . 12 9 6 . 7 Storage 11 | . 14 14 11 11 11 9 Processor 14 | . 9 14 12 15 22 18 Protection 5 | . . 1 11 11 11 7 Energy Gun 11 | . 10 4 21 22 22 7 Ballistic Gun 3 | . 6 10 . . . . Ballistic Cannon 3 | . 9 6 . . . . Launcher 1 | . . . . . . 6 Peak Build Rating 37 | 6 7 18 22 24 24 37 Average Rating 17 | 3 6 12 18 21 24 27 On Entrance 13 | . 6 7 17 19 24 24 Naked Turns . | . . . . . . . Heaviest Build 31 | 11 14 17 25 23 22 31 Greatest Support 32 | 32 32 28 22 22 22 32 Greatest Overweight (x) 8 | . . 5 1 1 . 8 Average Overweight (x) . | . . . . . . . Largest Inventory Capacity 8 | 8 8 8 8 8 8 8 Average Capacity 7 | 6 8 8 8 8 8 8 Most Carried 8 | 4 8 8 8 8 8 8 Average Carried 6 | 1 4 7 7 7 7 6 Final Capacity 8 | 8 8 8 8 8 8 8 Final Carried 8 | 2 8 8 8 7 7 3 Class Distribution -------------------- 88% | Mutant 11% | Scavenger-Mutant Dominant Class ---------------- Mutant | -10/Materials Mutant | -9/Materials Mutant | -9/Mines Mutant | -9/Exiles Mutant | -8/Mines Mutant | -8/Materials Resources | -11 -10 -9 -9 -9 -8 -8 ----------- Run | Yrd Mat Mat Min Exi Min Mat Matter Collected 1623 | 193 301 702 60 . 10 357 Remotely . | . . . . . . . Salvage Created 2761 | . 348 639 176 . 121 1477 Parts 180 | . 29 45 9 . 16 81 Haulers Intercepted 6 | . 2 2 . . . 2 Recyclers Shooed . | . . . . . . . Parts Field Recycled . | . . . . . . . Retrieved Matter . | . . . . . . . Parts Self-Destructed . | . . . . . . . Prevented . | . . . . . . . Kills | -11 -10 -9 -9 -9 -8 -8 ------- Run | Yrd Mat Mat Min Exi Min Mat Combat Hostiles Destroyed 56 | . 10 15 2 . 6 23 Guns 25 | . 8 8 2 . 6 1 Cannons 17 | . 2 7 . . . 8 AOE 9 | . . . . . . 9 Classes Destroyed 11 | . 5 2 . . . 4 Worker 16 | . 1 7 4 . 1 3 Builder 3 | . . . . . . 3 Tunneler 1 | . . . . . . 1 Hauler 6 | . 2 2 . . . 2 Operator 1 | . . . . . . 1 Watcher 1 | . 1 . . . . . Swarmer 19 | . 6 4 . . 6 3 Grunt 25 | . 4 6 2 . . 13 Brawler 2 | . . . . . . 2 Duelist 1 | . . 1 . . . . Sentry 9 | . . 4 . . . 5 Best Kill Streak 7 | . 4 5 2 . 6 7 Combat Bots Only 6 | . 4 5 2 . 6 3 Max Kills in Single Turn 3 | . 1 1 1 . 2 3 Gunslinging 1 | . . . . . 1 . Exploded 3 | . . . . . . 3 Melee . | . . . . . . . Uniques/NPCs Destroyed . | . . . . . . . Combat | -11 -10 -9 -9 -9 -8 -8 -------- Run | Yrd Mat Mat Min Exi Min Mat Hostile Shots Fired 310 | . 37 68 8 . 20 177 Missed 95 | . 9 20 3 . 6 57 Hits 215 | . 28 48 5 . 14 120 Melee 1 | . . . . . . 1 Projectile 214 | . 28 48 5 . 14 119 Critical Strikes 7 | . 1 1 . . . 5 Damage Taken 3099 | . 297 639 126 . 127 1910 Core 830 | . 79 142 27 . 23 559 Absorbed by Shields . | . . . . . . . Redirected to Shielding 148 | . . 3 8 . 12 125 Core Remaining (%) 73 | 100 68 . . . 52 . Volleys Fired 201 | . 46 60 10 . 8 77 Largest 2 | . 2 2 2 . 2 2 Hottest 129 | . 70 90 90 . 90 129 Shots Fired 340 | . 88 116 20 . 16 100 Gun 202 | . 68 64 20 . 16 34 Cannon 114 | . 20 52 . . . 42 Launcher 24 | . . . . . . 24 Special . | . . . . . . . Kinetic 161 | . 51 110 . . . . Thermal 59 | . 31 . . . . 28 Explosive . | . . . . . . . Electromagnetic 120 | . 6 6 20 . 16 72 Robot Hit Streak 14 | . 7 12 4 . 2 14 Robot Miss Streak 7 | . 6 7 3 . 3 4 Penetration Max . | . . . . . . . Secondary Targets 7 | . 3 1 1 . 2 . Max Gunslinging Chain 1 | . 1 1 1 . 1 . Shots Hit Robots 229 | . 44 83 15 . 11 76 Core Hits 114 | . 21 37 9 . 7 40 Critical Kills . | . . . . . . . Critical Parts Destroyed . | . . . . . . . Critical Strikes 3 | . . 3 . . . . Blast 3 | . . 3 . . . . Melee Attacks 5 | . . . . . . 5 Impact 5 | . . . . . . 5 Slashing . | . . . . . . . Piercing . | . . . . . . . Sneak Attacks . | . . . . . . . Combat Hostiles . | . . . . . . . Follow-up Attacks . | . . . . . . . Damage Inflicted 5050 | . 622 1314 325 . 126 2663 Guns 1851 | . 406 614 252 . 104 475 Cannons 1637 | . 213 697 . . . 727 Explosions 1452 | . . . 73 . 22 1357 Melee 91 | . . . . . . 91 Ramming 19 | . 3 3 . . . 13 Kinetic 1626 | . 396 1230 . . . . Thermal 930 | . 176 . 73 . 22 659 Explosive . | . . . . . . . Electromagnetic 2384 | . 47 81 252 . 104 1900 Impact 91 | . . . . . . 91 Slashing . | . . . . . . . Piercing . | . . . . . . . Highest Corruption 19 | . 2 . . . . 19 Average Corruption 8 | . 2 . . . . 12 Corruption Purged . | . . . . . . . Corruption Blocked . | . . . . . . . Effects 16 | . 4 . . . . 12 Message Errors 5 | . . . . . . 5 Matter Fused 5 | . 3 . . . . 2 Heat Flow Errors 2 | . . . . . . 2 Energy Discharges 1 | . . . . . . 1 Data Loss (major) 1 | . 1 . . . . . Misdirections 1 | . . . . . . 1 Weapon Failures 1 | . . . . . . 1 Overload Shots . | . . . . . . . Overflow Damage 30 | . . 9 . . . 21 Projectiles 9 | . . 9 . . . . Explosions 21 | . . . . . . 21 Melee . | . . . . . . . Knockbacks 9 | . 4 4 . . . 1 Impact 1 | . . . . . . 1 Kinetic 7 | . 3 4 . . . . Secondary 1 | . 1 . . . . . Self-Inflicted Damage 218 | . 1 1 40 . 15 161 Shots 10 | . . . 2 . 1 7 Rammed 4 | . 1 1 . . . 2 Targets Rammed 4 | . 1 1 . . . 2 Kicked . | . . . . . . . Crushed . | . . . . . . . Highest Temperature 225 | . 104 21 75 . 81 225 Average Temperature 59 | . 45 14 39 . 36 79 Received Heat Transfer 1113 | . 102 234 39 . . 738 Siege Activations . | . . . . . . . Martial Activations . | . . . . . . . Shielding Activations . | . . . . . . . Robots Disrupted . | . . . . . . . Combat Hostiles . | . . . . . . . Robots Corrupted 6 | . . . . . . 6 Combat Hostiles 5 | . . . . . . 5 Parts Fried 16 | . . . 3 . . 13 Impact Corruptions . | . . . . . . . Robots Melted . | . . . . . . . Combat Hostiles . | . . . . . . . Parts Melted 2 | . 1 . . . . 1 Heat Transferred 1516 | . 400 . 50 . 50 1016 Parts Sabotaged . | . . . . . . . Parts Stolen . | . . . . . . . Parts Stripped . | . . . . . . . Power Chain Reactions 13 | . . . 2 . 1 10 Alert | -11 -10 -9 -9 -9 -8 -8 ------- Run | Yrd Mat Mat Min Exi Min Mat Maximum Alert Level 1 | . . . . . . 1 Low Security (%) 94 | 100 100 100 100 . 100 79 Level 1 5 | . . . . . . 20 Level 2 . | . . . . . . . Level 3 . | . . . . . . . Level 4 . | . . . . . . . Level 5 . | . . . . . . . High Security . | . . . . . . . Max Security . | . . . . . . . Peak Influence 322 | . 122 183 78 . 94 322 Initial 64 | . . 12 64 . . . Average 78 | . 64 108 19 . 43 109 Influence Increases 1726 | . 287 515 76 . 108 740 Destroy 0b10 Robot/C 1004 | . 200 300 40 . 96 368 Destroy 0b10 Robot/NC 129 | . 20 45 20 . 4 40 Destroy Leader 260 | . 46 104 10 . 8 92 Successful Hack 10 | . 5 5 . . . . Disable Machine 51 | . . 15 . . . 36 Anti-Garrison Action 120 | . . . . . . 120 Destroy Structure 44 | . 1 1 6 . . 36 Partial Spotted 27 | . . 15 . . . 12 Lose Combat Pursuer 81 | . 15 30 . . . 36 Influence Decreases 1442 | . 257 380 234 7 108 456 Entered New Map 126 | . . 18 101 7 . . Time Decay 1106 | . 247 332 133 . 108 286 Lost Part 210 | . 10 30 . . . 170 Squads Dispatched 14 | . 1 4 . . . 9 Investigation 5 | . 1 2 . . . 2 Extermination . | . . . . . . . Reinforcement 6 | . . 2 . . . 4 Assault 2 | . . . . . . 2 Garrison 1 | . . . . . . 1 Intercept . | . . . . . . . Searches Triggered . | . . . . . . . Construction Impeded 2 | . . . . . . 2 Haulers Reinforced . | . . . . . . . Active Scanning Responses . | . . . . . . . Cargo Convoy Interrupts . | . . . . . . . Stealth | -11 -10 -9 -9 -9 -8 -8 --------- Run | Yrd Mat Mat Min Exi Min Mat Distress Signals 6 | . 2 2 . . . 2 Communications Jammed . | . . . . . . . Distress Signals . | . . . . . . . Times Spotted 98 | . 17 33 2 . 7 39 Peak Tracking Total 9 | . 4 8 2 . 4 9 Tactical Retreats 5 | . 1 1 . . . 3 Traps | -11 -10 -9 -9 -9 -8 -8 ------- Run | Yrd Mat Mat Min Exi Min Mat Traps Triggered 5 | . 1 1 1 . . 2 Indirectly 1 | . . . . . . 1 Trap Hack Attempts . | . . . . . . . Triggered . | . . . . . . . Disarmed . | . . . . . . . Reprogrammed . | . . . . . . . Reused . | . . . . . . . Traps Extracted . | . . . . . . . Installed . | . . . . . . . Triggered . | . . . . . . . Machines | -11 -10 -9 -9 -9 -8 -8 ---------- Run | Yrd Mat Mat Min Exi Min Mat Machines Disabled 5 | . . 1 . . . 4 Max in Single Turn 1 | . . 1 . . . 1 Garrison Access 1 | . . . . . . 1 Machines Repaired . | . . . . . . . Machines Dismantled . | . . . . . . . Machines Sabotaged . | . . . . . . . Overloaded Fab Kills . | . . . . . . . Hacking | -11 -10 -9 -9 -9 -8 -8 --------- Run | Yrd Mat Mat Min Exi Min Mat Machines Accessed 16 | . 2 6 1 4 . 3 Terminals 7 | . 2 4 . . . 1 Fabricators . | . . . . . . . Repair Stations . | . . . . . . . Recycling Units 2 | . . 1 . . . 1 Scanalyzers 2 | . . 1 . . . 1 Garrison Access . | . . . . . . . Total Hacks 34 | . 5 13 1 5 . 10 Successful 23 | . 3 7 1 5 . 7 Failed 11 | . 2 6 . . . 3 Catastrophic . | . . . . . . . Database Lockouts . | . . . . . . . Manual 1 | . . . . 1 . . Terminals 16 | . 5 8 . . . 3 Fabricators . | . . . . . . . Repair Stations . | . . . . . . . Recycling Units 4 | . . 1 . . . 3 Scanalyzers 8 | . . 4 . . . 4 Garrison Access . | . . . . . . . Terminal Hacks 14 | . 3 4 1 5 . 1 Record 4 | . . . . 4 . . Prototype ID Bank 2 | . 1 . . . . 1 Open Door 1 | . . . 1 . . . Alert Level 1 | . . 1 . . . . Locate Traps 2 | . 1 1 . . . . Transport Status 2 | . 1 1 . . . . Hauler Manifests 1 | . . 1 . . . . Proto ID Catalog 1 | . . . . 1 . . Fabricator Hacks . | . . . . . . . Repair Station Hacks . | . . . . . . . Recycling Unit Hacks 3 | . . 1 . . . 2 Report Inventory 2 | . . 1 . . . 1 Retrieve Components 1 | . . . . . . 1 Scanalyzer 6 | . . 2 . . . 4 Insert Component 3 | . . 1 . . . 2 Analyze 3 | . . 1 . . . 2 Garrison Access Hacks . | . . . . . . . Unauthorized Hacks . | . . . . . . . Terminals . | . . . . . . . Fabricators . | . . . . . . . Repair Stations . | . . . . . . . Recycling Units . | . . . . . . . Scanalyzers . | . . . . . . . Garrison Access . | . . . . . . . Data Cores Recovered . | . . . . . . . Used . | . . . . . . . Hacking Detections 6 | . 1 4 . . . 1 Full Trace Events 2 | . 1 1 . . . . Feedback Events . | . . . . . . . Feedback Blocked . | . . . . . . . Robot Schematics Acquired . | . . . . . . . Robots Built . | . . . . . . . Authchips . | . . . . . . . Time . | . . . . . . . Total Robot Build Rating . | . . . . . . . Part Schematics Acquired 3 | . . 1 . . . 2 Parts Built . | . . . . . . . Authchips . | . . . . . . . Time . | . . . . . . . Total Part Build Rating . | . . . . . . . Parts Repaired . | . . . . . . . Time . | . . . . . . . Parts Recycled . | . . . . . . . Recycled Matter . | . . . . . . . Retrieved Matter . | . . . . . . . Retrieved Components 1 | . . . . . . 1 Parts Scanalyzed 3 | . . 1 . . . 2 Part Schematics Acquired 3 | . . 1 . . . 2 Parts Damaged . | . . . . . . . Bothacking | -11 -10 -9 -9 -9 -8 -8 ------------ Run | Yrd Mat Mat Min Exi Min Mat Used RIF Installer . | . . . . . . . Robots Hacked . | . . . . . . . Non-combat . | . . . . . . . Combat . | . . . . . . . Robot Hacks Applied . | . . . . . . . Relay Couplers Released 2 | . . . . . . 2 Machine Destruction 2 | . . . . . . 2 Fabnet Peak Effective % . | . . . . . . . Robots Rewired . | . . . . . . . Allies Hacked . | . . . . . . . Hacks Repelled . | . . . . . . . Allies | -11 -10 -9 -9 -9 -8 -8 -------- Run | Yrd Mat Mat Min Exi Min Mat Total Allies . | . . . . . . . Largest Group . | . . . . . . . Highest-Rated Group . | . . . . . . . Highest-Rated Ally . | . . . . . . . Total Orders . | . . . . . . . Ally Attacks . | . . . . . . . Total Damage . | . . . . . . . Kills . | . . . . . . . Allies Corrupted . | . . . . . . . Allies Melted . | . . . . . . . Intel | -11 -10 -9 -9 -9 -8 -8 ------- Run | Yrd Mat Mat Min Exi Min Mat Active Infowar (turns) 1074 | . 412 662 . . . . Optics 1074 | . 412 662 . . . . Sensors 319 | . . 319 . . . . Robot Analysis Total . | . . . . . . . Derelict Logs Recovered 2 | . . . 2 . . . Drone Launches . | . . . . . . . Drone Recoveries . | . . . . . . . Exploration | -11 -10 -9 -9 -9 -8 -8 ------------- Run | Yrd Mat Mat Min Exi Min Mat Turns Passed 3175 | 46 573 794 477 276 234 775 Spaces Moved 2435 | 33 390 494 434 296 243 545 Core 10 | 5 . 4 . . . 1 Treads 72 | . . 72 . . . . Legs . | . . . . . . . Wheels 2343 | 28 390 418 434 296 243 534 Hover 10 | . . . . . . 10 Flight . | . . . . . . . Fastest Speed 46 | 50 100 80 85 85 85 46 Average Speed 95 | 92 100 101 98 92 85 88 Slowest Speed 450 | 100 100 300 100 100 85 450 Overloaded Moves . | . . . . . . . Propulsion Burnouts . | . . . . . . . Robots Hopped . | . . . . . . . Potential Cave-ins . | . . . . . . . Cave-ins Triggered . | . . . . . . . Exploration Rate (%) 51 | 3 46 47 85 62 74 41 Regions Visited 6 Branch Regions 3 Pre-discovered Areas 1 | . . . 1 . . . Known Exits Taken . | . . . . . . . Unknown Exits Taken 6 | 1 1 1 1 1 1 . Scrap Searched 1 | . . . 1 . . . Spaces Dug . | . . . . . . . Terrain Destroyed 45 | . . . 6 . . 39 Melee . | . . . . . . . Projectile 2 | . . . . . . 2 AOE 43 | . . . 6 . . 37 Terrain Rammed . | . . . . . . . Walls Destroyed . | . . . . . . . Machines Disabled . | . . . . . . . Actions | -11 -10 -9 -9 -9 -8 -8 --------- Run | Yrd Mat Mat Min Exi Min Mat Total 2964 | 48 489 677 467 299 254 730 Wait 139 | . 23 56 6 . 1 53 Move 2429 | 32 389 493 433 295 242 545 Hop . | . . . . . . . Pick Up 46 | 9 11 13 5 1 1 6 Fast Attach 27 | . 4 9 3 . . 11 Attach 41 | 6 2 15 2 1 . 15 Detach 22 | . 5 10 . . . 7 Swap 6 | . . 4 . . 1 1 Drop 44 | 1 8 16 8 2 1 8 Fire 201 | . 46 60 10 . 8 77 Melee 5 | . . . . . . 5 Ram 4 | . 1 1 . . . 2 Kick . | . . . . . . . Crush . | . . . . . . . Escape Stasis . | . . . . . . . Rewire . | . . . . . . . Trap . | . . . . . . . Miscellaneous . | . . . . . . . Route ------- -11/Scrapyard -10/Materials -9/Materials (discovered 3 exits: *Mat x2 / *Min) -9/Mines (discovered 2 exits: *Mat / *Exi) -9/Exiles -8/Mines -8/Materials History --------- Turn | Location | Event 20 | -11/Scrapyard | Discovered new exit (range 15) 47 | -11/Scrapyard | Entered Materials 305 | -10/Materials | Build established: Mutant 533 | -10/Materials | Discovered new exit (range 18) 620 | -10/Materials | Entered another Materials area 620 | -9/Materials | Evolved 2 slots: Utility x2 866 | -9/Materials | Discovered new exit (range 18) 1149 | -9/Materials | Discovered new exit (range 11) 1402 | -9/Materials | Discovered new exit (range 15) 1414 | -9/Materials | Entered Mines 1415 | -9/Mines | Assembled infested the area 1436 | -9/Mines | Learned location of Storage (-7) 1441 | -9/Mines | Met a Derelict who couldn't figure out how to use a Trap Extractor 1481 | -9/Mines | Met 8R-AWN 1548 | -9/Mines | Discovered new exit (range 5) 1757 | -9/Mines | Learned Materials interactive machine intel 1782 | -9/Mines | Discovered new exit (range 14) 1789 | -9/Mines | Received a Rocket Launcher from a helpful Derelict 1891 | -9/Mines | Entered Exiles 1914 | -9/Exiles | Welcomed by 8R-AWN 1936 | -9/Exiles | Met EX-HEX 1970 | -9/Exiles | Met EX-BIN 1986 | -9/Exiles | Aligned with FarCom system 1987 | -9/Exiles | Given EX-Vault access code 2026 | -9/Exiles | Opened EX-Vault 2039 | -9/Exiles | Found Prototype Processor 2041 | -9/Exiles | Identified 0b10 Alert Chip 2064 | -9/Exiles | Warned to stay clear of 0b10 Research branches 2119 | -9/Exiles | Met EX-DEC 2155 | -9/Exiles | Discovered new exit (range 14) 2167 | -9/Exiles | Left Exiles lab with 0b10 Alert Chip 2167 | -9/Exiles | Entered Mines 2212 | -8/Mines | Discovered new exit (range 15) 2401 | -8/Mines | Entered Materials 2401 | -8/Materials | Evolved 2 slots: Propulsion x1, Utility x1 2402 | -8/Materials | Loaded intel: 19 interactive machine locations 2751 | -8/Materials | Garrison activated, responded to threat 2986 | -8/Materials | System corruption reached 10% 3115 | -8/Materials | Lost 5 parts (1p2n1u1w) 3157 | -8/Materials | Core integrity fell below 50% 3168 | -8/Materials | Core integrity fell below 20% 3176 | -8/Materials | Destroyed by G-47 Trooper with Particle Gun Last Messages --------------- Imp. EM Pulse Cannon destroyed. Terminal disabled. G-47 Trooper destroyed. Heat Sink destroyed. Knocked back. B-36 Bruiser destroyed. Slug penetrates Wall. Ion Cannon destroyed. Acquired Hammer. Slug penetrates Wall. Imp. Deuterium Engine destroyed. Aerolev Unit destroyed. U-05 Engineer builds a Wall. Penetrated by Slug. Critical hit (Burn: +37). G-47 Trooper knocked back. Z:3B FU |%>HMA%7 D#